bitfinex/quotes_BTCUSD_20250530
["timestamp","ask_amount","ask_price","bid_price","bid_amount"]
[1748641109766,0.02577906,104590.0,104580.0,0.8010991]
[1748641109973,0.02577906,104590.0,104580.0,0.8969534]
[1748641110589,0.03534002,104590.0,104580.0,0.8969534]
[1748641110805,0.02577906,104590.0,104580.0,0.8969534]
[1748641111014,0.00665779,104590.0,104580.0,0.8969534]
[1748641111437,0.00665779,104590.0,104580.0,0.9121952]
[1748641111851,0.00665779,104590.0,104580.0,0.8205952]
[1748641112057,0.00665779,104590.0,104580.0,0.8235952]
[1748641112265,0.00665779,104590.0,104580.0,1.22537605]
[1748641112675,0.00665779,104590.0,104580.0,1.22837605]
[1748641117350,0.00665779,104590.0,104580.0,1.25705705]
[1748641117543,0.00665779,104590.0,104580.0,1.24181525]
[1748641119109,0.00665779,104590.0,104580.0,1.25703779]
[1748641120169,0.00665779,104590.0,104580.0,0.39406104]
[1748641120170,0.03534011,104590.0,104580.0,0.39406104]
[1748641120391,0.03534002,104590.0,104580.0,1.1457251]
[1748641120591,0.03534002,104590.0,104580.0,1.46094124]
[1748641120592,0.23612394,104590.0,104580.0,1.46094124]
[1748641120801,0.23612394,104590.0,104580.0,1.48006453]
[1748641121024,0.24568508,104590.0,104580.0,1.57257575]
[1748641121228,0.24568508,104590.0,104580.0,1.5725752]
[1748641121432,0.04490107,104590.0,104580.0,1.57257465]
[1748641121835,0.02577906,104590.0,104580.0,1.59647465]
[1748641122048,0.02577897,104590.0,104580.0,1.59647465]
[1748641122171,0.0162182,104590.0,104580.0,1.30147465]
[1748641122371,0.0162182,104590.0,104580.0,1.59643465]
[1748641122679,0.02577879,104590.0,104580.0,1.59643465]
[1748641123313,0.03533956,104590.0,104580.0,1.59643465]
[1748641123543,0.03533956,104590.0,104580.0,1.30147465]
[1748641123714,0.03533956,104590.0,104580.0,1.59631465]
[1748641123913,0.00665779,104590.0,104580.0,1.59631465]
[1748641124111,0.00665779,104590.0,104580.0,1.62101465]
[1748641126394,0.00665779,104590.0,104580.0,1.63623719]
[1748641132545,0.00665779,104590.0,104580.0,1.62101465]
[1748641134040,0.00665779,104590.0,104580.0,1.6355555]
[1748641136071,0.00665779,104590.0,104580.0,1.7055555]
[1748641139981,0.01789265,104610.0,104600.0,0.55988415]
[1748641140228,0.04656894,104610.0,104600.0,1.11947959]
[1748641140631,0.03701036,104610.0,104600.0,1.11947959]
[1748641140983,0.02745132,104610.0,104600.0,1.11947959]
[1748641141201,0.03701036,104610.0,104600.0,1.11962587]
[1748641142072,0.03801036,104610.0,104600.0,1.11962587]
[1748641142832,0.03901036,104610.0,104600.0,1.11962587]
[1748641143036,0.03901036,104610.0,104600.0,1.14342587]
[1748641143255,0.04856949,104610.0,104600.0,1.14342587]
[1748641143467,0.23975635,104610.0,104600.0,1.14342587]
[1748641143676,0.23975635,104610.0,104600.0,1.55622587]
[1748641143882,0.04857004,104610.0,104600.0,1.55622587]
[1748641144810,0.04757004,104610.0,104600.0,1.55622587]
[1748641145237,0.03801082,104610.0,104600.0,1.53242587]
[1748641145439,0.03701082,104610.0,104600.0,1.53242587]
[1748641145873,0.03701082,104610.0,104600.0,1.53342587]
[1748641146565,0.23775635,104610.0,104600.0,1.53342587]
[1748641146772,0.02745169,104610.0,104600.0,1.58192587]
[1748641146976,0.01789265,104610.0,104600.0,1.58192587]
[1748641147182,0.01789229,104610.0,104600.0,1.58192587]
[1748641147387,0.03701018,104610.0,104600.0,1.58192587]
[1748641147594,0.04656931,104610.0,104600.0,1.58192587]
[1748641149874,0.23775635,104610.0,104600.0,1.58192587]
[1748641150081,0.04657004,104610.0,104600.0,1.58192587]
[1748641150534,0.04657004,104610.0,104600.0,1.5971827]
[1748641151431,0.04657004,104610.0,104600.0,0.94207855]
[1748641151432,0.21030466,104610.0,104600.0,0.94207855]
[1748641151637,0.25920466,104610.0,104600.0,0.52044311]
[1748641152465,0.25920466,104610.0,104600.0,0.62996791]
[1748641152698,0.21030466,104610.0,104600.0,0.52044311]
[1748641153126,0.21030466,104610.0,104600.0,0.50518628]
[1748641153327,0.21030466,104610.0,104600.0,0.5976975]
[1748641154152,0.16930466,104610.0,104600.0,0.5976975]
[1748641154994,0.16930466,104610.0,104600.0,0.5064575]
[1748641155201,0.16930466,104610.0,104600.0,0.5976975]
[1748641159504,0.16930466,104610.0,104600.0,0.6231975]
[1748641159707,0.16930466,104610.0,104600.0,0.5976975]
[1748641161165,0.12830466,104610.0,104600.0,0.5976975]
[1748641162834,0.17820466,104610.0,104600.0,0.5064575]
[1748641163037,0.17820466,104610.0,104600.0,0.5976975]
[1748641163038,0.12830466,104610.0,104600.0,0.5976975]
[1748641164030,0.17820466,104610.0,104600.0,0.5976975]
[1748641168226,0.13720466,104610.0,104600.0,0.5976975]
[1748641168572,0.08730466,104610.0,104600.0,0.5976975]
[1748641175304,0.04630466,104610.0,104600.0,0.5976975]
[1748641178685,0.04630466,104610.0,104600.0,0.6211975]
[1748641179110,0.14215896,104610.0,104600.0,0.5064575]
[1748641179320,0.14215896,104610.0,104600.0,0.50470628]
[1748641180182,0.04630466,104610.0,104600.0,0.50470628]
[1748641180393,0.04630466,104610.0,104600.0,0.55300628]
[1748641182281,0.97510836,104620.0,104600.0,0.55300628]
[1748641182481,0.19118631,104610.0,104600.0,0.55300628]
[1748641182686,0.19118631,104610.0,104600.0,0.62934127]
[1748641183304,0.19118631,104610.0,104600.0,0.62834127]
[1748641183459,0.19118631,104610.0,104600.0,0.62934127]
[1748641184592,0.19118631,104610.0,104600.0,0.62834127]
[1748641186093,0.19118631,104610.0,104600.0,0.62934127]
[1748641189514,0.15018631,104610.0,104600.0,0.62934127]
[1748641191939,0.15018631,104610.0,104600.0,0.21654127]
[1748641196442,0.10918631,104610.0,104600.0,0.21654127]
[1748641200353,0.23927105,104630.0,104610.0,0.20074544]
[1748641200354,0.19127105,104630.0,104610.0,0.20074544]
[1748641200575,0.03823176,104620.0,104610.0,0.32193294]
[1748641200795,0.03823176,104620.0,104610.0,0.41269294]
[1748641201026,0.21984249,104620.0,104610.0,0.38401675]
[1748641201243,0.00955776,104620.0,104610.0,0.46179295]
[1748641201725,0.02867355,104620.0,104610.0,0.46179295]
[1748641201948,0.0382314,104620.0,104610.0,0.46179295]
[1748641202174,0.04778961,104620.0,104610.0,0.46179295]
[1748641202619,0.04878961,104620.0,104610.0,0.46179295]
[1748641202818,0.04978961,104620.0,104610.0,0.46179295]
[1748641203479,0.03778961,104620.0,104610.0,0.46179295]
[1748641204100,0.03778916,104620.0,104610.0,0.80179295]
[1748641204667,0.04734737,104620.0,104610.0,0.80179295]
[1748641209030,0.04734737,104620.0,104610.0,0.80179313]
[1748641210106,0.04734728,104620.0,104610.0,0.80179313]
[1748641210420,0.04979006,104620.0,104610.0,0.80179313]
[1748641210703,0.04023185,104620.0,104610.0,0.80179313]
[1748641211331,0.04979006,104620.0,104610.0,0.80179313]
[1748641211742,0.02479006,104620.0,104610.0,0.80179313]
[1748641211948,0.01523185,104620.0,104610.0,0.80179313]
[1748641212159,0.02479006,104620.0,104610.0,0.80179313]
[1748641212710,0.02478988,104620.0,104610.0,0.80179313]
[1748641213018,0.03434809,104620.0,104610.0,0.80179313]
[1748641213834,0.03434782,104620.0,104610.0,0.80179313]
[1748641214442,0.03434782,104620.0,104610.0,0.7826757]
[1748641214644,0.22940043,104620.0,104610.0,0.79223455]
[1748641215512,0.23895883,104620.0,104610.0,0.79223455]
[1748641215754,0.21984286,104620.0,104610.0,0.7826757]
[1748641215950,0.21984286,104620.0,104610.0,0.79223455]
[1748641218735,0.21984286,104620.0,104610.0,1.20503455]
[1748641218941,0.19484286,104620.0,104610.0,1.20503455]
[1748641219957,0.19484286,104620.0,104610.0,1.1954757]
[1748641221091,0.19484286,104620.0,104610.0,1.20503455]
[1748641221313,0.19484286,104620.0,104610.0,1.49823455]
[1748641221940,0.01911606,104620.0,104610.0,1.60364743]
[1748641222161,0.02867437,104620.0,104610.0,1.60364743]
[1748641222634,0.02867437,104620.0,104610.0,1.62296357]
[1748641223044,0.02867418,104620.0,104610.0,1.62296357]
[1748641223459,0.01911597,104620.0,104610.0,1.62296357]
[1748641223888,0.01911542,104620.0,104610.0,1.62296357]
[1748641224086,0.02867336,104620.0,104610.0,1.62296357]
[1748641224287,0.03823148,104620.0,104610.0,1.62296357]
[1748641224840,0.03823148,104620.0,104610.0,1.69296357]
[1748641225639,0.02867336,104620.0,104610.0,1.69296357]
[1748641225766,0.01867336,104620.0,104610.0,1.69296357]
[1748641226258,0.02823121,104620.0,104610.0,1.69296357]
[1748641226471,0.03778933,104620.0,104610.0,1.69296357]
[1748641226903,0.00911542,104620.0,104610.0,1.69296357]
[1748641227111,0.01867327,104620.0,104610.0,1.69296357]
[1748641227617,0.01911433,104630.0,104620.0,0.55984213]
[1748641227838,0.01911433,104630.0,104620.0,0.69179559]
[1748641228048,0.21982148,104630.0,104620.0,0.69179559]
[1748641228669,0.22937896,104630.0,104620.0,0.71091129]
[1748641228884,0.02111433,104630.0,104620.0,0.71091129]
[1748641229095,0.02111378,104630.0,104620.0,0.71091129]
[1748641229294,0.03067099,104630.0,104620.0,0.71091129]
[1748641229527,0.01355675,104630.0,104620.0,0.80676559]
[1748641229731,0.01355675,104630.0,104620.0,0.83346481]
[1748641229930,0.01103675,104630.0,104620.0,0.83346481]
[1748641230241,0.02059378,104630.0,104620.0,0.83346481]
[1748641232006,0.03015099,104630.0,104620.0,0.83346481]
[1748641232190,0.0301509,104630.0,104620.0,0.83346481]
[1748641232391,0.02059378,104630.0,104620.0,0.83346481]
[1748641232810,0.03015099,104630.0,104620.0,0.83346481]
[1748641232957,0.02059378,104630.0,104620.0,0.83346481]
[1748641233712,0.03015099,104630.0,104620.0,0.83346481]
[1748641234136,0.03015099,104630.0,104620.0,0.84304474]
[1748641234470,0.02059369,104630.0,104620.0,0.84304474]
[1748641235324,0.03015081,104630.0,104620.0,0.84304474]
[1748641237251,0.01103675,104630.0,104620.0,0.84304474]
[1748641237463,0.03015062,104630.0,104620.0,0.84304474]
[1748641238518,0.03015053,104630.0,104620.0,0.84304474]
[1748641238721,0.03970765,104630.0,104620.0,0.84304474]
[1748641238931,0.03970765,104630.0,104620.0,1.13616474]
[1748641239468,0.03015053,104630.0,104620.0,1.13616474]
[1748641239875,0.02059359,104630.0,104620.0,1.13616474]
[1748641241195,0.01103675,104630.0,104620.0,1.13616474]
[1748641241373,0.02059359,104630.0,104620.0,1.13616474]
[1748641242312,0.22130038,104630.0,104620.0,0.17779037]
[1748641242544,0.21226409,104630.0,104620.0,0.11114232]
[1748641243186,0.21226409,104630.0,104620.0,0.09969993]
[1748641244474,0.21226409,104630.0,104620.0,0.00957993]
[1748641244678,0.21226409,104630.0,104620.0,0.39281993]
[1748641244895,0.21226409,104630.0,104620.0,0.47575122]
[1748641245540,0.21226409,104630.0,104620.0,0.48525249]
[1748641245782,0.21226409,104630.0,104620.0,0.10201249]
[1748641246018,0.21226409,104630.0,104620.0,0.48521249]
[1748641248899,0.21226409,104630.0,104620.0,0.48505249]
[1748641249292,0.21226409,104630.0,104620.0,0.19213249]
[1748641249498,0.25986409,104630.0,104620.0,0.19213249]
[1748641249746,0.21226409,104630.0,104620.0,0.19213249]
[1748641249960,0.21226409,104630.0,104620.0,0.18263122]
[1748641250183,0.23606409,104630.0,104620.0,0.18263122]
[1748641251383,0.20072624,104620.0,104610.0,0.51675361]
[1748641251587,0.20072624,104620.0,104610.0,0.60687361]
[1748641252031,0.20072624,104620.0,104610.0,0.89979361]
[1748641252660,0.20172624,104620.0,104610.0,0.89979361]
[1748641254221,0.20172624,104620.0,104610.0,0.88835122]
[1748641254429,0.20172624,104620.0,104610.0,0.88823122]
[1748641255985,0.20172624,104620.0,104610.0,0.50292]
[1748641256454,0.20172624,104620.0,104610.0,0.55242]
[1748641262409,0.21128436,104620.0,104610.0,0.74360631]
[1748641262652,0.20172624,104620.0,104610.0,0.74360631]
[1748641263116,0.20172624,104620.0,104610.0,0.55242]
[1748641263340,0.20172624,104620.0,104610.0,0.64493122]
[1748641266323,0.20172624,104620.0,104610.0,0.93725122]
[1748641267677,0.20172624,104620.0,104610.0,1.12843753]
[1748641267899,0.20172624,104620.0,104610.0,0.93725122]
[1748641268052,0.20172624,104620.0,104610.0,1.12843753]
[1748641268264,0.20172624,104620.0,104610.0,1.13799684]
[1748641270917,0.20172624,104620.0,104610.0,1.15711501]
[1748641271341,0.20172624,104620.0,104610.0,1.16667386]
[1748641271551,0.20172624,104620.0,104610.0,1.17811625]
[1748641271974,0.21128418,104620.0,104610.0,1.17811625]
[1748641272186,0.22084185,104620.0,104610.0,1.17811625]
[1748641273730,0.23040025,104620.0,104610.0,1.17811625]
[1748641276575,0.23040025,104620.0,104610.0,1.18767501]
[1748641276787,0.02967382,104620.0,104610.0,1.18767501]
[1748641277027,0.23040025,104620.0,104610.0,1.18767501]
[1748641278510,0.02967382,104620.0,104610.0,1.28352867]
[1748641278712,0.23040016,104620.0,104610.0,1.28352867]
[1748641279572,0.22940016,104620.0,104610.0,1.28552867]
[1748641282238,0.03823213,104620.0,104610.0,1.62552867]
[1748641282434,0.23895856,104620.0,104610.0,1.6407855]
[1748641285364,0.23895856,104620.0,104610.0,1.63122683]
[1748641286233,0.22940089,104620.0,104610.0,1.63122683]
[1748641292292,0.22940089,104620.0,104610.0,1.62166807]
[1748641293624,0.21984295,104620.0,104610.0,1.01367044]
[1748641293827,0.20072643,104620.0,104610.0,1.5172551]
[1748641294039,0.19116803,104620.0,104610.0,1.49813675]
[1748641294479,0.19116803,104620.0,104610.0,1.50769606]
[1748641295625,0.19116803,104620.0,104610.0,1.51725528]
[1748641296023,0.19116803,104620.0,104610.0,1.38650975]
[1748641296242,0.19116803,104620.0,104610.0,1.57769606]
[1748641297112,0.19116803,104620.0,104610.0,1.58725528]
[1748641297438,0.19116803,104620.0,104610.0,1.58469528]
[1748641299693,0.19116803,104620.0,104610.0,1.29141528]
[1748641302320,0.19116803,104620.0,104610.0,1.28185606]
[1748641302968,0.15916803,104620.0,104610.0,1.28185606]
[1748641303904,0.15916803,104620.0,104610.0,0.87161606]
[1748641308940,0.15916803,104620.0,104610.0,0.14819922]
[1748641309141,0.381325,104620.0,104610.0,0.02869922]
[1748641310269,0.331625,104620.0,104610.0,0.02869922]
[1748641310979,0.25502233,104620.0,104610.0,0.02869922]
[1748641311403,0.25502233,104620.0,104610.0,0.002]
[1748641311617,0.30472233,104620.0,104610.0,0.09208]
[1748641311824,0.25502233,104620.0,104610.0,0.10279633]
[1748641312248,0.25502233,104620.0,104610.0,0.09208]
[1748641319095,0.74492233,104620.0,104610.0,0.09208]
[1748641319509,0.74492233,104620.0,104610.0,0.14188]
[1748641319659,0.4899,104620.0,104610.0,0.33306631]
[1748641319879,0.2198213,104630.0,104620.0,0.20072624]
[1748641320084,0.22937878,104630.0,104620.0,0.31444677]
[1748641320697,0.22937878,104630.0,104620.0,0.32400471]
[1748641320880,0.21982175,104630.0,104620.0,0.32400489]
[1748641321088,0.21026463,104630.0,104620.0,0.32400489]
[1748641321459,0.21026463,104630.0,104620.0,0.33356292]
[1748641321782,0.21126463,104630.0,104620.0,0.33356292]
[1748641323076,0.21026463,104630.0,104620.0,0.33356292]
[1748641323312,0.21026463,104630.0,104620.0,0.33556292]
[1748641325795,0.21026463,104630.0,104620.0,0.32600489]
[1748641326156,0.20070724,104630.0,104620.0,0.31644677]
[1748641328084,0.19114976,104630.0,104620.0,0.11572053]
[1748641328332,0.19114976,104630.0,104620.0,0.14188]
[1748641328545,0.31240406,104630.0,104620.0,0.09208]
[1748641328766,0.33730406,104630.0,104620.0,0.09208]
[1748641329021,0.64656491,104630.0,104620.0,0.002]
[1748641333440,0.59626491,104630.0,104620.0,0.002]
[1748641342511,0.59594491,104630.0,104620.0,0.0259]
[1748641342721,0.19114976,104630.0,104620.0,0.065548]
[1748641348869,0.19114976,104630.0,104620.0,0.0749938]
[1748641350312,0.19114976,104630.0,104620.0,0.065548]
[1748641350513,0.19114976,104630.0,104620.0,0.0514]
[1748641359417,0.19114976,104630.0,104620.0,0.14232]
[1748641376166,0.28700406,104630.0,104620.0,0.14196]
[1748641376379,0.58060406,104630.0,104620.0,0.11646]
[1748641376619,0.58060406,104630.0,104620.0,0.09256]
[1748641377907,0.58060406,104630.0,104620.0,0.14922075]
[1748641378120,0.58060406,104630.0,104620.0,0.17322075]
[1748641379805,0.58060406,104630.0,104620.0,0.19832075]
[1748641380246,0.28700406,104630.0,104620.0,0.19832075]
[1748641380481,0.58052406,104630.0,104620.0,0.19832075]
[1748641382891,0.58052406,104630.0,104620.0,0.14166]
[1748641385449,0.53952406,104630.0,104620.0,0.14166]
[1748641393236,0.49852406,104630.0,104620.0,0.14166]
[1748641400837,0.45752406,104630.0,104620.0,0.14166]
[1748641408509,0.68116724,104640.0,104620.0,0.14166]
[1748641408732,0.19114976,104630.0,104620.0,0.12794296]
[1748641409371,0.19114976,104630.0,104620.0,0.12594296]
[1748641409582,0.19114976,104630.0,104620.0,0.3782693]
[1748641409789,0.19114976,104630.0,104620.0,0.17754296]
[1748641410006,0.19114976,104630.0,104620.0,0.17554296]
[1748641411491,0.19114976,104630.0,104620.0,0.17754296]
[1748641416366,0.15014976,104630.0,104620.0,0.17754296]
[1748641417413,0.15014976,104630.0,104620.0,0.08698296]
[1748641417414,0.24600406,104630.0,104620.0,0.08698296]
[1748641417631,0.24600406,104630.0,104620.0,0.12730296]
[1748641417858,0.24600406,104630.0,104620.0,0.09192]
[1748641418047,0.29660406,104630.0,104620.0,0.002]
[1748641418252,0.29660406,104630.0,104620.0,0.09192]
[1748641419107,0.29660406,104630.0,104620.0,0.002]
[1748641419313,0.29660406,104630.0,104620.0,0.09192]
[1748641419520,0.29660406,104630.0,104620.0,0.106392]
[1748641420167,0.27110406,104630.0,104620.0,0.09192]
[1748641423506,0.24600406,104630.0,104620.0,0.09192]
[1748641423987,0.20500406,104630.0,104620.0,0.09192]
[1748641427892,0.21954491,104630.0,104620.0,0.09144]
[1748641429002,0.21954491,104630.0,104620.0,0.002]
[1748641429226,0.21954491,104630.0,104620.0,0.09144]
[1748641429445,0.21954491,104630.0,104620.0,0.11584]
[1748641429665,0.21954491,104630.0,104620.0,0.14254]
[1748641430773,0.21954491,104630.0,104620.0,0.002]
[1748641431000,0.24434491,104630.0,104620.0,0.002]
[1748641431284,0.21954491,104630.0,104620.0,0.002]
[1748641431718,0.17854491,104630.0,104620.0,0.002]
[1748641433689,0.51854491,104630.0,104620.0,0.002]
[1748641434149,0.54354491,104630.0,104620.0,0.002]
[1748641434377,0.56864491,104630.0,104620.0,0.002]
[1748641436147,0.57064491,104630.0,104620.0,0.002]
[1748641436601,0.57064491,104630.0,104610.0,0.08944]
[1748641436602,0.21526709,104620.0,104610.0,0.08944]
[1748641436814,0.60416139,104620.0,104610.0,0.13864]
[1748641437470,0.60416139,104620.0,104610.0,0.19379863]
[1748641437691,0.20072624,104620.0,104610.0,0.19379863]
[1748641439765,0.20172624,104620.0,104610.0,0.19379863]
[1748641440451,0.20172624,104620.0,104610.0,0.38498494]
[1748641440672,0.20172624,104620.0,104610.0,0.19379863]
[1748641441130,0.21128436,104620.0,104610.0,0.19379863]
[1748641441346,0.20172624,104620.0,104610.0,0.19379863]
[1748641460264,0.20172624,104620.0,104610.0,0.08944]
[1748641464157,0.20074544,104610.0,104600.0,0.47457502]
[1748641464607,0.29659974,104610.0,104600.0,0.42437502]
[1748641464823,0.32289974,104610.0,104600.0,0.51481502]
[1748641465043,0.34919974,104610.0,104600.0,0.51481502]
[1748641465494,0.34919974,104610.0,104600.0,0.51681502]
[1748641465495,0.64299974,104610.0,104600.0,0.51681502]
[1748641465718,0.61669974,104610.0,104600.0,0.50538628]
[1748641465903,0.61669974,104610.0,104600.0,0.54949549]
[1748641466393,0.59039974,104610.0,104600.0,0.54949549]
[1748641469031,0.59039974,104610.0,104600.0,0.13669549]
[1748641469252,0.59039974,104610.0,104600.0,0.09258628]
[1748641469471,0.54939974,104610.0,104600.0,0.09258628]
[1748641469713,0.56043887,104610.0,104600.0,0.14278628]
[1748641469927,0.0191178,104610.0,104600.0,0.37462026]
[1748641470146,0.01911542,104620.0,104610.0,0.22942191]
[1748641470365,0.00955757,104620.0,104610.0,0.68554862]
[1748641470579,0.01911533,104620.0,104610.0,0.68554862]
[1748641470801,0.02867336,104620.0,104610.0,1.09838862]
[1748641471025,0.02867327,104620.0,104610.0,1.12505568]
[1748641471472,0.03823139,104620.0,104610.0,1.12505568]
[1748641471880,0.03823139,104620.0,104610.0,1.10981736]
[1748641472327,0.03923148,104620.0,104610.0,1.12805568]
[1748641472551,0.03823148,104620.0,104610.0,1.12805568]
[1748641472898,0.03823148,104620.0,104610.0,1.13005568]
[1748641474196,0.03823148,104620.0,104610.0,1.11481736]
[1748641474405,0.04778979,104620.0,104610.0,1.11481754]
[1748641474618,0.02867327,104620.0,104610.0,1.22023051]
[1748641474839,0.03823148,104620.0,104610.0,1.22023051]
[1748641475049,0.04778979,104620.0,104610.0,1.22023051]
[1748641475269,0.03823148,104620.0,104610.0,1.22023051]
[1748641475978,0.03823148,104620.0,104610.0,1.28023051]
[1748641476577,0.22939951,104620.0,104610.0,1.20474513]
[1748641476815,0.21028418,104620.0,104610.0,1.02021436]
[1748641477028,0.20072624,104620.0,104610.0,0.81946874]
[1748641477242,0.15972624,104620.0,104610.0,0.35642874]
[1748641477491,0.25558054,104620.0,104610.0,0.01642874]
[1748641477706,0.25558054,104620.0,104610.0,0.01974533]
[1748641478353,0.25558054,104620.0,104610.0,0.11018533]
[1748641480529,0.25558054,104620.0,104610.0,0.005]
[1748641481915,0.74548054,104620.0,104610.0,0.005]
[1748641482433,0.82208321,104620.0,104610.0,0.005]
[1748641482677,0.87368321,104620.0,104610.0,0.005]
[1748641483105,0.79708054,104620.0,104610.0,0.005]
[1748641483314,1.04880054,104620.0,104610.0,0.005]
[1748641483532,0.74548054,104620.0,104610.0,0.24868631]
[1748641483742,0.70974185,104620.0,104610.0,0.2840848]
[1748641483958,0.50901615,104620.0,104610.0,0.63064384]
[1748641484189,0.50901615,104620.0,104610.0,0.74561576]
[1748641484190,0.51857373,104620.0,104610.0,0.74561576]
[1748641484406,0.52813194,104620.0,104610.0,0.74661576]
[1748641484622,0.70018464,104620.0,104610.0,0.42133927]
[1748641484845,0.21028464,104620.0,104610.0,0.41933927]
[1748641487158,0.21028464,104620.0,104610.0,0.001]
[1748641487371,0.21028464,104620.0,104610.0,0.0276]
[1748641487611,0.21028464,104620.0,104610.0,0.0536]
[1748641488725,0.51408464,104620.0,104610.0,0.001]
[1748641490542,0.60993894,104620.0,104610.0,0.001]
[1748641491613,0.61241894,104620.0,104610.0,0.0539]
[1748641491838,0.57141894,104620.0,104610.0,0.05930463]
[1748641492503,0.57141894,104620.0,104610.0,0.15390463]
[1748641492735,0.16928464,104620.0,104610.0,0.15390463]
[1748641499525,0.12828464,104620.0,104610.0,0.15758463]
[1748641502917,0.12828464,104620.0,104610.0,0.13158463]
[1748641503141,0.22413894,104620.0,104610.0,0.09928]
[1748641503369,0.27663894,104620.0,104610.0,0.001]
[1748641503588,0.76653894,104620.0,104610.0,0.001]
[1748641505417,0.74013894,104620.0,104610.0,0.001]
[1748641506117,0.71403894,104620.0,104610.0,0.001]
[1748641507263,0.67303894,104620.0,104610.0,0.001]
[1748641507780,0.69913894,104620.0,104610.0,0.001]
[1748641507994,0.72553894,104620.0,104610.0,0.001]
[1748641508428,0.67303894,104620.0,104610.0,0.001]
[1748641510345,0.72553894,104620.0,104610.0,0.001]
[1748641514737,0.69913894,104620.0,104610.0,0.001]
[1748641514952,0.65813894,104620.0,104610.0,0.001]
[1748641515620,0.20074544,104610.0,104600.0,0.14060628]
[1748641515838,0.60627974,104610.0,104600.0,0.20778906]
[1748641516500,0.60627974,104610.0,104600.0,0.16546278]
[1748641517633,0.60627974,104610.0,104600.0,0.16746278]
[1748641518365,0.60627974,104610.0,104600.0,0.19416278]
[1748641519375,0.60627974,104610.0,104600.0,0.0287]
[1748641519578,0.60627974,104610.0,104600.0,0.12698]
[1748641522788,0.56527974,104610.0,104600.0,0.12698]
[1748641524426,0.57483887,104610.0,104600.0,0.12698]
[1748641524641,0.57483887,104610.0,104600.0,0.15208]
[1748641525075,0.57483887,104610.0,104600.0,0.091288]
[1748641525959,0.20076462,104600.0,104590.0,0.34]
[1748641526187,0.20076462,104600.0,104590.0,0.46394]
[1748641527262,0.20076462,104600.0,104590.0,0.46494]
[1748641528009,0.20076462,104600.0,104590.0,0.49054]
[1748641529050,0.20076462,104600.0,104590.0,0.49154]
[1748641529262,0.20076462,104600.0,104590.0,0.58405122]
[1748641529741,0.20076462,104600.0,104590.0,0.47405122]
[1748641529985,0.20076462,104600.0,104590.0,0.24405122]
[1748641530416,0.15976462,104600.0,104590.0,0.24405122]
[1748641530918,0.16932466,104600.0,104590.0,0.24405122]
[1748641532797,0.16932466,104600.0,104590.0,0.15154]
[1748641538116,0.12832466,104600.0,104590.0,0.15154]
[1748641540244,0.12832466,104600.0,104590.0,0.16299758]
[1748641545747,0.12832466,104600.0,104590.0,0.14038]
[1748641545960,0.08732466,104600.0,104590.0,0.14038]
[1748641546870,0.08732466,104600.0,104590.0,0.17660024]
[1748641548416,0.08732466,104600.0,104590.0,0.11478]
[1748641548571,0.08732466,104600.0,104590.0,0.14008]
[1748641548777,0.0095594,104600.0,104590.0,0.47277057]
[1748641548980,0.0095594,104600.0,104590.0,0.47038034]
[1748641549157,0.02867885,104600.0,104590.0,0.47038034]
[1748641549359,0.03823889,104600.0,104590.0,0.55255195]
[1748641551671,0.03823889,104600.0,104590.0,0.44255195]
[1748641551908,0.02867885,104600.0,104590.0,0.44255195]
[1748641552144,0.22944347,104600.0,104590.0,0.43299145]
[1748641552360,0.22944347,104600.0,104590.0,0.44255213]
[1748641552582,0.21988407,104600.0,104590.0,0.43299154]
[1748641552793,0.21988407,104600.0,104590.0,0.44255231]
[1748641553653,0.15979421,104610.0,104590.0,0.4616734]
[1748641554082,0.0191199,104600.0,104590.0,0.4616734]
[1748641554519,0.21032448,104600.0,104590.0,0.4616734]
[1748641554732,0.21032448,104600.0,104590.0,0.4871734]
[1748641555251,0.2294442,104600.0,104590.0,0.4871734]
[1748641555461,0.2294442,104600.0,104590.0,0.4881734]
[1748641555672,0.2294442,104600.0,104590.0,0.4871734]
[1748641555878,0.2294442,104600.0,104590.0,0.4881734]
[1748641556090,0.2294442,104600.0,104590.0,0.4891734]
[1748641556518,0.2294442,104600.0,104590.0,0.4881734]
[1748641556782,0.03823962,104600.0,104590.0,0.4881734]
[1748641557019,0.03823962,104600.0,104590.0,0.4891734]
[1748641558796,0.2294442,104600.0,104590.0,0.4891734]
[1748641559007,0.03823962,104600.0,104590.0,0.4891734]
[1748641559421,0.03823962,104600.0,104590.0,0.5815334]
[1748641559639,0.02867949,104600.0,104590.0,0.5815334]
[1748641559844,0.02867949,104600.0,104590.0,0.5719729]
[1748641560050,0.03823962,104600.0,104590.0,0.5815334]
[1748641561089,0.02867949,104600.0,104590.0,0.5815334]
[1748641561303,0.1474737,104610.0,104590.0,0.58153276]
[1748641561514,0.0191199,104600.0,104590.0,0.53095276]
[1748641562217,0.0191199,104600.0,104590.0,0.55635276]
[1748641562501,0.0191199,104600.0,104590.0,0.58065276]
[1748641562705,0.03823962,104600.0,104590.0,0.57209235]
[1748641562921,0.21988497,104600.0,104590.0,0.44157667]
[1748641563142,0.21988497,104600.0,104590.0,0.45213763]
[1748641563571,0.21988497,104600.0,104590.0,0.45113763]
[1748641563790,0.21988497,104600.0,104590.0,0.45313763]
[1748641564003,0.21988497,104600.0,104590.0,0.46269849]
[1748641564853,0.21988497,104600.0,104590.0,0.45313763]
[1748641565062,0.21988497,104600.0,104590.0,0.47225917]
[1748641567529,0.21988497,104600.0,104590.0,0.45313763]
[1748641567735,0.21032493,104600.0,104590.0,0.42673763]
[1748641567947,0.21032493,104600.0,104590.0,0.44585926]
[1748641568449,0.21032493,104600.0,104590.0,0.4708588]
[1748641568650,0.21032493,104600.0,104590.0,0.47085825]
[1748641568878,0.21032493,104600.0,104590.0,0.46129775]
[1748641569083,0.16932493,104600.0,104590.0,0.47085834]
[1748641569311,0.16932493,104600.0,104590.0,0.46129775]
[1748641569744,0.16932493,104600.0,104590.0,0.4421763]
[1748641570064,0.16932493,104600.0,104590.0,0.45173707]
[1748641570281,0.16932493,104600.0,104590.0,0.43424829]
[1748641570713,0.15703301,104610.0,104590.0,0.44380888]
[1748641570930,0.00956004,104600.0,104590.0,0.45336938]
[1748641571338,0.01912017,104600.0,104590.0,0.45336938]
[1748641571551,0.01912017,104600.0,104590.0,0.45136938]
[1748641571900,0.01912017,104600.0,104590.0,0.45336938]
[1748641572118,0.01912017,104600.0,104590.0,0.45236938]
[1748641572344,0.02868003,104600.0,104590.0,0.45136938]
[1748641572551,0.02868003,104600.0,104590.0,0.45236938]
[1748641572762,0.02868003,104600.0,104590.0,0.45336938]
[1748641572971,0.22944483,104600.0,104590.0,0.45336938]
[1748641574122,0.22944483,104600.0,104590.0,0.34336938]
[1748641574332,0.23900441,104600.0,104590.0,0.44072938]
[1748641576689,0.19800441,104600.0,104590.0,0.44072938]
[1748641576930,0.20756454,104600.0,104590.0,0.43116888]
[1748641577250,0.01911944,104600.0,104590.0,0.46882938]
[1748641577477,0.02867948,104600.0,104590.0,0.46882938]
[1748641577686,0.01911944,104600.0,104590.0,0.80882938]